Cogmind - Beta 9.5 --- EXPLORER MODE // 2020.04.12 @ 00:50:02 // Halloween2019/Abominations Player: K.Ioz Result: Core destroyed Performance ------------- Evolutions (0) 0 Regions Visited (1) 200 Robots Destroyed (15) 75 Value Destroyed (954) 954 Prototype IDs (3) 60 Alien Tech Used (0) 0 Bonus (0) 0 TOTAL SCORE: 1289 Bonus ------- None Cogmind --------- Core Integrity 0/250 Matter 290/300 Energy 250/250 System Corruption 13% Temperature Cool (0) Movement Rolling (100) Ox1 Location -10/Materials Parts ------- > --- POWER (1) -------- Ion Engine > --- PROPULSION (2) --- Wheel Compact Wheel > --- UTILITY (3) ------ Medium Storage Unit High-capacity Storage Unit > --- WEAPON (2) ------- Beam Rifle > --- INVENTORY (16) --- Ion Engine Ion Engine Wheel Large Storage Unit Sensor Array Core Shielding Utility Shielding Trap Extractor Spread Laser Assault Rifle Light Assault Rifle Improved Light Cannon Improved Light Cannon Improved Light Cannon Mining Claw Peak State ------------ > --- POWER ------------ Ion Engine > --- PROPULSION ------- Wheel Wheel > --- UTILITY ---------- Medium Storage Unit High-capacity Storage Unit Weight Redist. System > --- WEAPON ----------- Beam Rifle > --- INVENTORY -------- Ion Engine Ion Engine Wheel Large Storage Unit Sensor Array Core Shielding Utility Shielding Trap Extractor Spread Laser Assault Rifle Light Assault Rifle Improved Light Cannon Improved Light Cannon Improved Light Cannon Mining Claw [Rating: 11] Favorites ----------- Power Ion Engine Engine Ion Engine Propulsion Light Treads Treads Light Treads Wheel Wheel Utility Medium Storage Unit Device Weight Redist. System Storage Medium Storage Unit Processor Targeting Computer Weapon Improved Light Cannon Energy Gun Spread Laser Energy Cannon Beam Cannon Ballistic Gun Light Assault Rifle Ballistic Cannon Improved Light Cannon Build | -11 -10 ------- Run | Scr Mat Slots Evolved 1 | . 1 Power . | . . Propulsion . | . . Utility 1 | . 1 Weapon . | . . Parts Attached 21 | 7 14 Power 2 | 1 1 Engine 2 | 1 1 Core . | . . Reactor . | . . Propulsion 8 | 2 6 Treads 2 | 2 . Leg . | . . Wheel 6 | . 6 Hover . | . . Flight . | . . Utility 4 | 2 2 Device 1 | . 1 Storage 2 | 1 1 Processor 1 | 1 . Hackware . | . . Protection . | . . Artifact . | . . Weapon 7 | 2 5 Energy Gun 3 | 1 2 Energy Cannon 1 | . 1 Ballistic Gun 2 | 1 1 Ballistic Cannon 1 | . 1 Launcher . | . . Special Weapon . | . . Impact Weapon . | . . Slashing Weapon . | . . Piercing Weapon . | . . Special Melee Weapon . | . . Unidentified Prototypes . | . . Parts Lost 10 | . 10 Power . | . . Propulsion 5 | . 5 Utility 1 | . 1 Weapon 4 | . 4 Highest Loss Streak 3 | . 3 Average Slot Usage (%) 82 | . 82 Engine 12 | . 12 Treads 16 | . 16 Wheel 1 | . 1 Storage 23 | . 23 Processor 5 | . 5 Energy Gun 8 | . 8 Energy Cannon 3 | . 3 Ballistic Gun 2 | . 2 Ballistic Cannon 7 | . 7 Naked Turns . | . . Heaviest Build 52 | 14 52 Greatest Support 40 | 40 40 Greatest Overweight (x) 17 | 1 17 Average Overweight (x) 1 | . 1 Largest Inventory Capacity 16 | 8 16 Average Capacity 14 | 5 15 Most Carried 16 | 5 16 Average Carried 12 | 1 12 Final Capacity 16 | 8 16 Final Carried 15 | 5 15 Class Distribution -------------------- 100% | Hacker-Mutant Dominant Class ---------------- Hacker-Mutant | -10/Materials Resources | -11 -10 ----------- Run | Scr Mat Matter Collected 605 | 247 358 Remotely . | . . Salvage Created 626 | . 626 Parts 23 | . 23 Haulers Intercepted . | . . Recyclers Shooed . | . . Parts Field Recycled . | . . Retrieved Matter . | . . Parts Self-Destructed . | . . Prevented . | . . Kills | -11 -10 ------- Run | Scr Mat Combat Hostiles Destroyed 15 | . 15 Guns 2 | . 2 Cannons 13 | . 13 Classes Destroyed 2 | . 2 Grunt 1 | . 1 Abomination 14 | . 14 Best Kill Streak 7 | . 7 Combat Bots Only 7 | . 7 Max Kills in Single Turn 1 | . 1 Gunslinging . | . . Exploded . | . . Melee . | . . Uniques/NPCs Destroyed . | . . Combat | -11 -10 -------- Run | Scr Mat Damage Taken 1292 | . 1292 Core 262 | . 262 Absorbed by Shields . | . . Core Remaining (%) 100 | 100 . Volleys Fired 52 | . 52 Largest 2 | . 2 Hottest 104 | . 104 Shots Fired 102 | . 102 Gun 32 | . 32 Cannon 70 | . 70 Launcher . | . . Special . | . . Kinetic 56 | . 56 Thermal 46 | . 46 Explosive . | . . Electromagnetic . | . . Robot Hit Streak 29 | . 29 Robot Miss Streak 5 | . 5 Penetration Max . | . . Secondary Targets . | . . Shots Hit Robots 78 | . 78 Core Hits 37 | . 37 Critical Hits 4 | . 4 Critical Kills 2 | . 2 Critical Parts Destroyed 2 | . 2 Melee Attacks . | . . Impact . | . . Slashing . | . . Piercing . | . . Sneak Attacks . | . . Combat Hostiles . | . . Follow-up Attacks . | . . Damage Inflicted 1617 | . 1617 Guns 378 | . 378 Cannons 1121 | . 1121 Explosions 118 | . 118 Melee . | . . Ramming . | . . Kinetic 819 | . 819 Thermal 798 | . 798 Explosive . | . . Electromagnetic . | . . Impact . | . . Slashing . | . . Piercing . | . . Highest Corruption 13 | . 13 Average Corruption 4 | . 4 Corruption Purged . | . . Effects 25 | . 25 Message Errors 4 | . 4 Matter Fused 5 | . 5 Heat Flow Errors 4 | . 4 Energy Discharges 4 | . 4 Data Loss (minor) 3 | . 3 Misfires 2 | . 2 Misdirections 1 | . 1 Targeting Errors 2 | . 2 Overload Shots . | . . Overflow Damage 90 | . 90 Projectiles 20 | . 20 Explosions 70 | . 70 Melee . | . . Knockbacks 3 | . 3 Impact . | . . Kinetic 3 | . 3 Secondary . | . . Self-Inflicted Damage . | . . Shots . | . . Rammed . | . . Targets Rammed . | . . Kicked . | . . Crushed . | . . Highest Temperature 207 | . 207 Average Temperature 71 | . 71 Received Heat Transfer 144 | . 144 Siege Activations . | . . Robots Corrupted . | . . Combat Hostiles . | . . Parts Fried . | . . Impact Corruptions . | . . Robots Melted . | . . Combat Hostiles . | . . Parts Melted 1 | . 1 Heat Transferred 373 | . 373 Parts Sabotaged . | . . Parts Stolen . | . . Parts Stripped . | . . Power Chain Reactions . | . . Missiles Intercepted . | . . Alert | -11 -10 ------- Run | Scr Mat Peak Influence 23 | . 23 Average Influence 4 | . 5 Maximum Alert Level . | . . Low Security (%) 100 | 100 100 Level 1 . | . . Level 2 . | . . Level 3 . | . . Level 4 . | . . Level 5 . | . . High Security . | . . Max Security . | . . Squads Dispatched 1 | . 1 Investigation . | . . Extermination . | . . Reinforcement . | . . Assault 1 | . 1 Garrison . | . . Intercept . | . . Construction Impeded . | . . Haulers Reinforced . | . . Stealth | -11 -10 --------- Run | Scr Mat Distress Signals 2 | . 2 Communications Jammed . | . . Distress Signals . | . . Times Spotted 16 | . 16 Peak Tracking Total 4 | . 4 Tactical Retreats 1 | . 1 Traps | -11 -10 ------- Run | Scr Mat Traps Triggered . | . . Indirectly . | . . Trap Hack Attempts . | . . Triggered . | . . Disarmed . | . . Reprogrammed . | . . Reused . | . . Traps Extracted . | . . Installed . | . . Triggered . | . . Machines | -11 -10 ---------- Run | Scr Mat Machines Disabled 2 | . 2 Max in Single Turn 2 | . 2 Machines Sabotaged . | . . Garrisons Compromised . | . . Overloaded Fab Kills . | . . Fab Network Shutdowns . | . . Hacking | -11 -10 --------- Run | Scr Mat Machines Accessed 8 | . 8 Terminals 7 | . 7 Fabricators . | . . Repair Stations . | . . Recycling Units 1 | . 1 Scanalyzers . | . . Garrison Access . | . . Total Hacks 21 | . 21 Successful 11 | . 11 Failed 10 | . 10 Catastrophic 1 | . 1 Database Lockouts . | . . Manual 13 | . 13 Terminals 19 | . 19 Fabricators . | . . Repair Stations . | . . Recycling Units 2 | . 2 Scanalyzers . | . . Garrison Access . | . . Terminal Hacks 9 | . 9 Robot Analysis 2 | . 2 Prototype ID Bank 2 | . 2 Emergency Access Points 1 | . 1 Locate Traps 2 | . 2 Transport Status 1 | . 1 Zone Layout 1 | . 1 Fabricator Hacks . | . . Repair Station Hacks . | . . Recycling Unit Hacks 2 | . 2 Process 1 | . 1 Report Inventory 1 | . 1 Scanalyzer . | . . Garrison Access Hacks . | . . Unauthorized Hacks . | . . Terminals . | . . Fabricators . | . . Repair Stations . | . . Recycling Units . | . . Scanalyzers . | . . Garrison Access . | . . Data Cores Recovered . | . . Used . | . . Hacking Detections 7 | . 7 Full Trace Events . | . . Feedback Events . | . . Feedback Blocked . | . . Robot Schematics Acquired . | . . Robots Built . | . . Matter . | . . Time . | . . Total Robot Build Rating . | . . Part Schematics Acquired . | . . Parts Built . | . . Matter . | . . Time . | . . Total Part Build Rating . | . . Parts Repaired . | . . Time . | . . Parts Recycled . | . . Recycled Matter 12 | . 12 Retrieved Matter . | . . Retrieved Components . | . . Parts Scanalyzed . | . . Part Schematics Acquired . | . . Parts Damaged . | . . Bothacking | -11 -10 ------------ Run | Scr Mat Used RIF Installer . | . . Robots Hacked . | . . Non-combat . | . . Combat . | . . Robot Hacks Applied . | . . Relay Couplers Released . | . . Robots Rewired . | . . Allies Hacked . | . . Hacks Repelled . | . . Allies | -11 -10 -------- Run | Scr Mat Total Allies . | . . Largest Group . | . . Highest-Rated Group . | . . Highest-Rated Ally . | . . Total Orders . | . . Ally Attacks . | . . Total Damage . | . . Kills . | . . Allies Corrupted . | . . Allies Melted . | . . Intel | -11 -10 ------- Run | Scr Mat Robot Analysis Total 2 | . 2 Derelict Logs Recovered . | . . Drone Launches . | . . Drone Recoveries . | . . Exploration | -11 -10 ------------- Run | Scr Mat Turns Passed 1796 | 111 1685 Spaces Moved 861 | 101 760 Core 88 | 61 27 Treads 679 | 40 639 Legs . | . . Wheels 94 | . 94 Hover . | . . Flight . | . . Fastest Speed 50 | 50 100 Average Speed 184 | 96 196 Slowest Speed 900 | 160 900 Overloaded Moves . | . . Propulsion Burnouts . | . . Robots Hopped . | . . Cave-ins Triggered 2 | . 2 Exploration Rate (%) 51 | 4 98 Regions Visited 1 Branch Regions . Pre-discovered Areas . | . . Known Exits Taken 1 | 1 . Unknown Exits Taken . | . . Scrap Searched . | . . Spaces Dug . | . . Terrain Destroyed 1 | . 1 Melee . | . . Projectile 1 | . 1 AOE . | . . Actions | -11 -10 --------- Run | Scr Mat Total 962 | 112 850 Wait 7 | . 7 Move 859 | 100 759 Hop . | . . Pick Up 18 | 5 13 Fast Attach 15 | 7 8 Attach 3 | . 3 Detach 1 | . 1 Swap 3 | . 3 Drop 3 | . 3 Fire 52 | . 52 Melee . | . . Ram . | . . Kick . | . . Crush . | . . Escape Stasis 1 | . 1 Rewire . | . . Trap . | . . Miscellaneous . | . . Route ------- -11/Scrapyard -10/Materials (discovered 3 exits: *Mat x3) History --------- Turn | Location | Event 7 | -11/Scrapyard | Identified exit to Materials 7 | -11/Scrapyard | Discovered exit to Materials (range 15) 112 | -11/Scrapyard | Entered Materials 112 | -10/Materials | Evolved 1 slot: Utility x1 322 | -10/Materials | Identified exit to Materials 322 | -10/Materials | Discovered exit to Materials (range 3) 335 | -10/Materials | Build established: Hacker-Mutant 574 | -10/Materials | Identified exit to Mines 574 | -10/Materials | Discovered exit to Mines (range 13) 577 | -10/Materials | Destroyed 7 combat bots 678 | -10/Materials | Discovered exit to Mines (range 15) 804 | -10/Materials | Discovered exit to Materials (range 15) 882 | -10/Materials | Crushed by falling debris 996 | -10/Materials | Discovered exit to Materials (range 15) 1183 | -10/Materials | Core integrity fell below 50% 1522 | -10/Materials | Crushed by falling debris 1523 | -10/Materials | Core integrity fell below 20% 1523 | -10/Materials | System corruption reached 10% 1553 | -10/Materials | Lost 3 parts (2n1w) 1797 | -10/Materials | Core destroyed Last Messages --------------- 01732_ System corrupted: Heat flow error (+221). 01735_ Acquired Weight Redist. System. 01736_ Dropped Weight Redist. System. 01737_ K-01 Serf system terminally corrupted. 01741_ Acquired 10 matter. 01747_ System corrupted: Energy discharge (-59). 01755_ K-01 Serf collects debris. 01763_ Unstable Anomaly suddenly flashes brightly. 01768_ Engulfed by violent ripples tearing at the fabric of space. 01768_ Wheel destroyed. 01770_ System corrupted: Matter fused (-9). 01773_ Acquired 9 matter. 01777_ Unstable Anomaly suddenly flashes brightly. 01782_ Acquired Com. Wheel. 01792_ System corrupted: FCS attempts to trigger Beam Rifle. 01792_ System corrupted: Beam Rifle targeting data glitched. 01792_ System corrupted: Beam Rifle misfires. 01794_ U-05 Engineer builds a Wall. 01795_ Unstable Anomaly suddenly flashes brightly. 01797_ Engulfed by violent ripples tearing at the fabric of space. Map ----- +----------------------------------------------------+ | | | | | ###""" """""""""####??????????######?????????????? | | """ # ??????? #?????????????? | | "" " " " ?????# #?????????????? | | """ """ """""###### ##????????????? | | """ " " """ """ " + "#????????????? | | """ " " """ """ """ " "#????????????? | | " " " """ """ " " % " "#????????????? | | " " " " " "#????????????? | | " """"" """"""" " ;;;""""""""#????????????? | | """ """"""" " " ; ####????????????? | | ! " ### ; ###???????????????? | | % >%%; #??#;;; ; #??????????????????? | | %%% * % # ###?# ;; ;; #??????????????????? | | """"""""""" % # ### ; ; #?????? ??????????? | | " "" ##;;;;##;;; ; #??????? < #????????? | | " " #% + ; #??????" #????????? | | " ## " %; ;; ; #????? " #????????? | | " ### " % ; ;; %; ###?? ; #????????? | | " #?# " " ;; ; # ### ; ^##???????? | | " #?##" " "" ;; ; ; %"#???????? | | " #??## ; "" ;; ;;;; ; ##???????? | | " #???##;;; "" ; %| ; ; ;#???????? | | " #????## ;% % ; n = ; ; ;#???????? | | """""""#????# ;n ]] ; @ % ; ;= ;######### | | ##????## ; ;;;; ; ;=% ;# # | | " """ #?????## ; ]] ; ; ; ; ;# # | | "%""" #?????# ; ; ; %; ;; "" "" # | | "%""" #?????## ;;;;;;; ; ;;;;;;| " """ # | | #??????# ; %! " "" # | | #??????# ;;;;;;;; ; % ;; " # | | #??????## ; """ ; ; % T ;; " ///# | | """"""##?????# ; """ ; ; % ;; " // # | | ######## ; """ ; ; % ;;;;"""" / # | | "##"##";;; ; ; ; " # | | %| """"" """" ; ; % " " # | | "" " |"| "" ; ; """ ; """""#### | | %| """";;;;;; """ """"""""" " ##?? | | % %% % "" " #?? | | |> " #?? | | = % %% % """"""##? | | % " " " " # | | %""" """""""" "" """"" " """ # | | """ " " " % " "Y" # | | T"" % " " "% # # | | """""""""""""" " " " % """"""""# | | %"""" " " "" """"""""""" # | | "" " " " "##### | | """"" """ " % " """" % "#???? | +----------------------------------------------------+ Best States ------------- Heat Dissipation 25 Energy Generation 10 Energy Capacity 250 Matter Stores 300 Matter Capacity 300 Sight Range 16 Terrain Scan Density 10 Resistance: KI 35 Resistance: TH 35 Resistance: EX 35 Resistance: EM 35 Resistance: I 35 Resistance: S 35 Resistance: P 35 Evasion (%) 50 Targeting Accuracy 5 Recoil Reduction 2 Offensive Hacking 20 Item Schematics ----------------- None Robot Schematics ------------------ None Fabricated ------------ Nothing Alien Tech Used ----------------- None Achievements -------------- None Challenges ------------ None Game ------ Seed AlphaModifiedLauncher Manual? 0 Play Time 00:22:10 Cumulative 147.7 hours Start 2020.04.12 @ 00:23:12 End 2020.04.12 @ 00:50:02 Sessions 3 Manual Loads 0 Difficulty Explorer Special Mode Halloween2019/Abominations Game No. 96 Rogue 74 Adventurer 0 Explorer 22 Win Type - Total 3 Types 3/0/0/0/0/0/0 Lore% 59 Gallery% 61 Achievement% 55 Wizard Run 0 Options --------- ASCII 0 Keyboard 1 Movement Vi Keybinds 0 Fullscreen 1 Font 12/Smallcaps Map View 90x75 Tactical HUD 1 Map Filters NONE Filters LOW_CONTRAST(47,30,31) Steam 1 RUN: 192c15ff-2d0f-4440-9afd-a3311f3613b1